Workbook

Sheet Comparative Contribution Income
C4: Comparative Contribution Income Statement
C5: For the Years 2005 through 2009
F7: 2005 | G7: =IF(F7,F7+1,"") -> 2006 | H7: =IF(SUM(G7),G7+1,"") -> 2007 | I7: =IF(SUM(H7),H7+1,"") -> 2008 | J7: =IF(SUM(I7),I7+1,"") -> 2009
C8: Total Sales | F8: $726,000 | G8: $826,000 | H8: $926,000 | I8: $1,726,000 | J8: $1,926,000
C9: Less: Variable Production Costs | F9: $290,400 | G9: $290,400 | H9: $290,400 | I9: $290,400 | J9: $290,400
C10: Less: Variable Selling Costs | F10: $184,800 | G10: $184,800 | H10: $184,800 | I10: $184,800 | J10: $184,800
C11: Total Variable Costs | F11: =IF(SUM(F9:F10),SUM(F9:F10),"") -> $475,200 | G11: =IF(SUM(G9:G10),SUM(G9:G10),"") -> $475,200 | H11: =IF(SUM(H9:H10),SUM(H9:H10),"") -> $475,200 | I11: =IF(SUM(I9:I10),SUM(I9:I10),"") -> $475,200 | J11: =IF(SUM(J9:J10),SUM(J9:J10),"") -> $475,200
C12: Contribution Margin | F12: =IF(SUM(F8,F11),F8-F11,"") -> $250,800 | G12: =IF(SUM(G8,G11),G8-G11,"") -> $350,800 | H12: =IF(SUM(H8,H11),H8-H11,"") -> $450,800 | I12: =IF(SUM(I8,I11),I8-I11,"") -> $1,250,800 | J12: =IF(SUM(J8,J11),J8-J11,"") -> $1,450,800
C13: Less: Fixed Production Costs | F13: $130,500 | G13: $130,500 | H13: $130,500 | I13: $130,500 | J13: $130,500
C14: Less: Fixed Selling and Administrative Costs | F14: $48,200 | G14: $48,200 | H14: $48,200 | I14: $48,200 | J14: $48,200
C15: Total Fixed Costs | F15: =IF(SUM(F13:F14),SUM(F13:F14),"") -> $178,700 | G15: =IF(SUM(G13:G14),SUM(G13:G14),"") -> $178,700 | H15: =IF(SUM(H13:H14),SUM(H13:H14),"") -> $178,700 | I15: =IF(SUM(I13:I14),SUM(I13:I14),"") -> $178,700 | J15: =IF(SUM(J13:J14),SUM(J13:J14),"") -> $178,700
C16: Income Before Taxes | F16: =IF(SUM(F15),F12-F15,"") -> $72,100 | G16: =IF(SUM(G15),G12-G15,"") -> $172,100 | H16: =IF(SUM(H15),H12-H15,"") -> $272,100 | I16: =IF(SUM(I15),I12-I15,"") -> $1,072,100 | J16: =IF(SUM(J15),J12-J15,"") -> $1,272,100
C17: Break-Even | F17: =(F15/(F15+F16))*F8 -> $517,289 | G17: =(G15/(G15+G16))*G8 -> $420,770 | H17: =(H15/(H15+H16))*H8 -> $367,072 | I17: =(I15/(I15+I16))*I8 -> $246,591 | J17: =(J15/(J15+J16))*J8 -> $237,232
